bitfinex/quotes_ETHUSD_20251110
["timestamp","ask_amount","ask_price","bid_price","bid_amount"]
[1762799047121,0.001,3551.0,3550.9,6.08954558]
[1762799051147,0.001,3551.0,3550.9,6.64481919]
[1762799051953,0.001,3551.0,3550.9,14.14481919]
[1762799054332,0.001,3551.0,3550.9,13.58954558]
[1762799055130,0.001,3551.0,3550.9,14.15895589]
[1762799055470,0.001,3551.0,3550.9,14.54991138]
[1762799056046,0.001,3551.0,3550.9,14.15895589]
[1762799057348,0.001,3551.0,3550.9,13.18404158]
[1762799057672,0.001,3551.0,3550.9,11.45232958]
[1762799057972,0.001,3551.0,3550.9,6.08954558]
[1762799058856,0.001,3551.0,3550.9,13.58954558]
[1762799059964,0.01,3551.9,3551.8,2.81547384]
[1762799060382,0.01,3551.9,3551.8,3.37857733]
[1762799061489,1.1298,3551.9,3551.0,7.905504]
[1762799061788,0.2191,3551.7,3551.6,2.81563239]
[1762799062088,0.6845,3551.7,3551.6,2.81563239]
[1762799062608,0.6845,3551.7,3551.4,2.81571887]
[1762799062776,0.2079,3551.9,3551.4,2.81571887]
[1762799062777,0.4542,3551.5,3551.4,2.81579095]
[1762799063085,0.6733,3551.9,3551.8,2.81547384]
[1762799063448,1.1298,3551.9,3551.8,2.81547384]
[1762799064263,0.6644,3551.9,3551.8,2.81547384]
[1762799064450,0.4665,3551.9,3551.8,2.81547384]
[1762799064681,0.01,3551.9,3551.8,3.37857723]
[1762799065581,0.01,3551.9,3551.8,3.88973196]
[1762799066095,0.01,3551.9,3551.8,3.86157723]
[1762799066257,0.4774,3551.9,3551.8,3.37857723]
[1762799067387,0.01,3551.9,3551.8,3.37857723]
[1762799068255,0.01,3551.9,3551.8,3.86157723]
[1762799068512,0.01,3551.9,3551.8,4.73088123]
[1762799069288,0.011,3551.9,3551.8,4.73088123]
[1762799069889,0.011,3551.9,3551.8,4.26708123]
[1762799070191,0.011,3551.9,3551.8,3.37857723]
[1762799070192,0.4784,3551.9,3551.8,3.37857723]
[1762799070493,0.011,3551.9,3551.8,3.86157723]
[1762799070656,0.011,3551.9,3551.8,4.26708123]
[1762799070860,1.52212305,3554.0,3551.8,4.26708123]
[1762799070861,0.75707176,3554.0,3553.9,0.405504]
[1762799071105,0.01,3554.9,3554.8,2.81309778]
[1762799071257,0.01,3554.9,3554.8,3.32422875]
[1762799071461,0.01,3554.9,3554.8,3.72973275]
[1762799071700,0.01,3554.9,3554.8,6.85955715]
[1762799072001,0.191,3555.9,3555.8,2.81230665]
[1762799072155,0.6584,3555.9,3555.8,2.81230665]
[1762799072365,0.6584,3555.9,3555.7,2.81234772]
[1762799072596,0.6584,3555.9,3555.8,2.81230665]
[1762799072597,0.191,3555.9,3555.8,2.81230665]
[1762799072900,0.4674,3555.6,3555.5,2.81251354]
[1762799073205,0.4674,3555.6,3555.3,2.81268425]
[1762799073493,0.2891,3555.4,3555.2,2.81278023]
[1762799073794,0.191,3555.9,3555.0,2.81292662]
[1762799073795,0.9271,3555.3,3555.0,2.81292662]
[1762799074095,0.191,3555.9,3555.0,2.81292662]
[1762799074096,0.2909,3555.1,3555.0,2.81292662]
[1762799074300,0.7024,3555.1,3555.0,2.81293952]
[1762799074867,0.7024,3555.1,3554.9,2.81296081]
[1762799075199,0.7024,3555.1,3554.7,7.31700913]
[1762799075200,0.191,3555.9,3554.8,2.81309608]
[1762799075379,0.4615,3555.0,3554.9,14.5]
[1762799075800,0.9289,3555.0,3554.9,14.5]
[1762799076178,0.9289,3555.0,3554.7,2.81316312]
[1762799076501,0.191,3555.9,3554.7,2.81316312]
[1762799076502,0.2396,3554.8,3554.7,2.81316312]
[1762799077006,0.7011,3554.8,3554.6,14.5]
[1762799077176,0.4615,3554.8,3554.7,2.81317692]
[1762799077381,0.181,3554.9,3554.2,6.16905082]
[1762799077382,0.4674,3554.3,3554.2,2.81357267]
[1762799077584,0.4615,3554.7,3554.6,2.81325606]
[1762799077795,0.4615,3554.7,3554.0,4.50383482]
[1762799077796,0.4615,3554.7,3554.3,2.81349351]
[1762799077975,0.4615,3554.7,3554.5,2.81327774]
[1762799078488,0.4615,3554.7,3554.6,2.81325606]
[1762799078898,0.9289,3554.7,3554.6,2.81325606]
[1762799079481,0.9289,3554.7,3554.5,2.81332379]
[1762799079686,0.4674,3554.3,3554.2,2.81356471]
[1762799079888,0.4674,3554.3,3553.9,2.81379459]
[1762799080169,0.2396,3553.9,3553.8,2.81388935]
[1762799080882,0.4674,3553.9,3553.8,2.81388935]
[1762799082012,1.1099,3553.9,3553.7,2.81391705]
[1762799082216,0.6425,3553.9,3553.6,2.81402271]
[1762799082396,0.4615,3553.8,3553.7,2.8139596]
[1762799082571,0.4674,3553.5,3553.3,1.259712]
[1762799082769,0.4674,3553.5,3553.4,2.81420611]
[1762799083014,0.9289,3553.5,3553.4,2.81420611]
[1762799084420,0.9289,3553.5,3553.2,2.81435274]
[1762799084573,0.2396,3553.3,3553.2,2.81435274]
[1762799084771,0.2396,3553.3,3553.2,2.81436451]
[1762799084997,0.7011,3553.3,3553.2,2.81436451]
[1762799086008,0.7011,3553.3,3553.1,2.82438819]
[1762799086172,0.9266,3553.2,3553.1,2.82438819]
[1762799086510,0.9266,3553.2,3553.1,0.01]
[1762799086718,0.9266,3553.2,3553.1,2.82444372]
[1762799087276,0.9266,3553.2,3553.1,2.82644372]
[1762799090102,0.4651,3553.2,3553.1,2.82644372]
[1762799093635,0.9266,3553.2,3553.1,0.012]
[1762799100398,0.4651,3553.2,3553.1,0.012]
[1762799100598,0.4802,3553.5,3553.1,0.012]
[1762799100806,0.4802,3553.5,3553.3,2.81428432]
[1762799101203,0.4788,3553.4,3553.3,2.81428432]
[1762799101623,0.959,3553.4,3553.3,2.81428432]
[1762799103595,0.959,3553.4,3553.1,0.012]
[1762799103801,0.2099,3553.2,3553.1,2.82643974]
[1762799104206,0.181,3553.9,3553.1,2.82643974]
[1762799104406,0.181,3553.9,3553.2,0.02814364]
[1762799104628,0.4788,3553.3,3553.1,0.012]
[1762799104949,0.2099,3553.2,3553.1,0.012]
[1762799105311,0.6901,3553.2,3553.1,0.012]
[1762799110922,5.55769722,3553.2,3553.1,0.012]
[1762799113129,1.949812,3553.2,3553.1,0.012]
[1762799114967,8.37206173,3553.2,3553.1,0.012]
[1762799115168,5.55769722,3553.2,3553.1,0.012]
[1762799115468,8.37206173,3553.2,3553.1,0.012]
[1762799115668,5.55769722,3553.2,3553.1,0.012]
[1762799115865,1.949812,3553.2,3553.1,0.012]
[1762799116065,8.37206173,3553.2,3553.1,0.012]
[1762799117769,5.55769722,3553.2,3553.1,0.012]
[1762799117936,8.37206173,3553.2,3553.1,0.012]
[1762799119169,8.77756573,3553.2,3553.1,0.007]
[1762799119372,9.78801936,3553.2,3553.1,0.007]
[1762799120566,13.907574,3553.2,3553.1,0.007]
[1762799120769,12.38545095,3553.2,3553.1,0.007]
[1762799120968,12.75548121,3553.2,3553.1,0.007]
[1762799121877,3.22018537,3552.8,3552.7,0.002]
[1762799122169,10.4492406,3552.8,3552.7,0.002]
[1762799122368,10.9294406,3552.8,3552.7,0.002]
[1762799123337,9.41411285,3552.8,3552.7,0.002]
[1762799124282,10.9294406,3552.8,3552.7,0.002]
[1762799124771,12.38911285,3552.8,3552.7,0.002]
[1762799124971,9.41411285,3552.8,3552.7,0.002]
[1762799125470,3.22050231,3552.4,3552.3,0.002]
[1762799125636,9.67722745,3552.4,3552.3,0.002]
[1762799125839,10.17542745,3552.4,3552.3,0.002]
[1762799126874,10.0677203,3552.4,3552.3,0.002]
[1762799127848,11.07651796,3552.4,3552.3,0.002]
[1762799128074,10.7064877,3552.4,3552.3,0.002]
[1762799128278,9.69769004,3552.4,3552.3,0.002]
[1762799128575,10.0677203,3552.4,3552.3,0.002]
[1762799128891,9.83555099,3552.4,3552.3,0.002]
[1762799129046,9.46552073,3552.4,3552.3,0.002]
[1762799129246,10.47301709,3552.4,3552.3,0.002]
[1762799130700,9.46552073,3552.4,3552.3,0.002]
[1762799131318,10.47301709,3552.4,3552.3,0.002]
[1762799133228,3.38121236,3552.4,3552.3,0.002]
[1762799133399,5.53878732,3552.4,3552.3,0.002]
[1762799133592,5.18871431,3552.4,3552.3,0.002]
[1762799134421,5.94429132,3552.4,3552.3,0.002]
[1762799136512,5.18871431,3552.4,3552.3,0.002]
[1762799139128,6.19621067,3552.4,3552.3,0.002]
[1762799139331,6.19826885,3552.4,3552.3,0.002]
[1762799139527,5.18871431,3552.4,3552.3,0.002]
[1762799142313,5.55874457,3552.4,3552.3,0.002]
[1762799143430,2.8151568,3552.2,3552.1,1e-08]
[1762799143631,9.21277922,3552.2,3552.1,1e-08]
[1762799143845,3.22081931,3552.0,3551.9,0.002]
[1762799144163,5.09692823,3552.0,3551.9,0.002]
[1762799144361,5.59512823,3552.0,3551.9,0.002]
[1762799145124,8.57012823,3552.0,3551.9,0.002]
[1762799146370,10.59519062,3552.0,3551.9,0.002]
[1762799146971,3.22145353,3551.2,3551.1,0.01]
[1762799147127,9.96773694,3551.2,3551.1,0.01]
[1762799147526,8.95702378,3551.2,3551.1,0.01]
[1762799147946,9.06988406,3551.2,3551.1,0.01]
[1762799149757,8.57168406,3551.2,3551.1,0.01]
[1762799150157,8.11858406,3551.2,3551.1,0.4706]
[1762799150762,8.11858406,3551.2,3551.1,0.01]
[1762799152099,8.58728406,3551.2,3551.1,0.01]
[1762799152271,9.08548406,3551.2,3551.1,0.01]
[1762799155288,13.57655381,3551.2,3551.1,0.01]
[1762799156798,12.06048406,3551.2,3551.1,0.01]
[1762799157317,9.08548406,3551.2,3551.1,0.01]
[1762799160389,9.48918098,3551.2,3551.1,0.01]
[1762799160608,9.48918098,3551.2,3551.1,0.012]
[1762799160815,9.08548406,3551.2,3551.1,0.012]
[1762799161012,9.06768406,3551.2,3551.1,0.012]
[1762799162522,8.58728406,3551.2,3551.1,0.012]
[1762799162720,9.06768406,3551.2,3551.1,0.012]
[1762799163425,8.58728406,3551.2,3551.1,0.012]
[1762799164521,10.10314257,3551.2,3551.1,0.012]
[1762799164714,10.10344257,3551.2,3551.1,0.012]
[1762799165433,9.06798406,3551.2,3551.1,0.012]
[1762799165899,10.10376929,3551.2,3551.1,0.012]
[1762799166332,8.58758406,3551.2,3551.1,0.012]
[1762799166629,9.63516262,3551.2,3551.1,0.4656]
[1762799166817,9.63516262,3551.2,3551.1,0.6511]
[1762799166818,7.35149726,3551.2,3551.1,0.6511]
[1762799167017,4.78427025,3551.2,3551.1,0.6511]
[1762799167219,1.47658948,3551.4,3551.1,1.1297]
[1762799167411,0.75840079,3551.4,3551.2,0.4786]
[1762799167606,0.75840079,3551.4,3551.3,0.4536]
[1762799167834,0.75840079,3551.6,3551.3,0.4536]
[1762799168030,0.75840079,3551.5,3551.4,0.4786]
[1762799168411,0.75840079,3551.5,3551.4,0.9322]
[1762799169834,1.259712,3551.6,3551.4,0.9322]
[1762799169835,2.01811279,3551.6,3551.4,0.9322]
[1762799170038,2.01811279,3551.6,3551.5,0.9322]
[1762799170333,0.75840079,3551.6,3551.5,0.9322]
[1762799173244,0.75940079,3551.9,3551.5,1.30700451]
[1762799173424,0.75940079,3551.9,3551.1,0.1975]
[1762799173425,0.001,3551.9,3551.8,0.4536]
[1762799173859,0.001,3551.9,3551.8,0.9322]
[1762799180577,0.001,3551.9,3551.8,3.74767384]
[1762799181576,0.001,3551.9,3551.8,0.9322]
[1762799181781,0.001,3551.9,3551.8,3.74767384]
[1762799183452,0.001,3551.9,3551.8,4.40400258]
[1762799186678,0.001,3551.9,3551.8,1.58852874]
[1762799186881,0.001,3551.9,3551.8,0.9103]
[1762799187471,0.001,3551.9,3551.8,3.75392857]
[1762799187786,0.001,3551.9,3551.8,0.9103]
[1762799188352,0.001,3551.9,3551.8,3.72577384]
[1762799188667,0.001,3551.9,3551.8,0.9103]
[1762799190467,0.001,3551.9,3551.8,3.72577384]
[1762799190685,0.001,3551.9,3551.8,0.9103]
[1762799191852,0.001,3551.9,3551.8,3.72577384]
[1762799192255,0.001,3551.9,3551.8,0.9103]
[1762799192788,0.001,3551.9,3551.8,3.72577384]
[1762799193486,0.001,3551.9,3551.8,0.4536]
[1762799194069,0.001,3551.9,3551.8,0.4864]
[1762799194253,1.717712,3551.9,3551.2,3.86]
[1762799194455,1.717712,3551.9,3551.1,0.1975]
[1762799194456,3.61103594,3551.5,3551.1,0.1975]
[1762799194660,1.259712,3551.6,3551.1,0.1975]
[1762799194888,1.259712,3551.6,3551.4,0.4864]
[1762799195090,1.259712,3551.6,3551.5,0.4864]
[1762799195759,1.259712,3551.8,3551.5,0.4864]
[1762799196590,0.001,3551.9,3551.7,0.4864]
[1762799196761,0.001,3551.9,3551.8,0.4864]
[1762799196964,0.001,3551.9,3551.8,3.30187384]
[1762799197161,0.001,3551.9,3551.8,3.75857384]
[1762799197395,0.001,3551.9,3551.8,4.41598737]
[1762799200172,0.001,3551.9,3551.8,1.14381353]
[1762799200488,0.001,3551.9,3551.8,0.4864]
[1762799200884,0.001,3551.9,3551.8,0.9431]
[1762799201086,0.001,3551.9,3551.8,0.4864]
[1762799203369,0.458,3551.9,3551.2,0.4567]
[1762799203568,0.458,3551.9,3551.2,3.27264699]
[1762799203795,0.001,3551.9,3551.3,2.81587024]
[1762799203997,0.001,3551.9,3551.4,2.81578584]
[1762799204371,0.001,3551.9,3551.8,0.4864]
[1762799207009,0.001,3551.9,3551.5,0.4567]
[1762799207302,0.458,3551.9,3551.3,3.27255431]
[1762799207508,0.458,3551.9,3551.4,2.81577041]
[1762799207871,0.458,3551.9,3551.4,0.4567]
[1762799208403,0.458,3551.9,3551.4,3.27246256]
[1762799209019,0.458,3551.9,3551.4,0.4567]
[1762799209173,0.001,3551.9,3551.5,0.4567]
[1762799209898,0.001,3551.9,3551.3,0.4567]
[1762799210236,0.4573,3551.9,3551.3,0.4567]
[1762799210934,0.4573,3551.9,3551.4,2.81577505]
[1762799211115,0.001,3551.9,3551.4,2.81577505]
[1762799211315,0.001,3551.9,3551.4,3.27247505]
[1762799211638,0.001,3551.9,3551.4,0.4567]
[1762799211933,0.001,3551.9,3551.2,2.8159368]
[1762799211934,0.4573,3551.9,3551.2,2.8159368]
[1762799212103,0.4573,3551.9,3551.1,0.1975]
[1762799212306,0.001,3551.9,3551.2,0.4567]
[1762799212713,0.001,3551.9,3551.2,4.3167]
[1762799212934,0.001,3551.9,3551.3,3.27255625]
[1762799213633,0.001,3551.9,3551.3,0.4567]
[1762799213835,1.717012,3551.9,3551.2,6.67594108]
[1762799214040,1.717012,3551.9,3551.3,2.81580829]
[1762799214240,0.4573,3551.9,3551.3,2.81587024]
[1762799214449,0.4573,3551.9,3551.2,7.1580305]
[1762799214628,1.717012,3551.9,3551.2,4.3421]
[1762799215313,1.717012,3551.9,3551.2,7.15803608]
[1762799215745,1.260712,3551.9,3551.2,6.67593608]
[1762799215908,0.461,3551.8,3551.3,2.81586223]
[1762799216233,0.461,3551.8,3551.2,6.67591194]
[1762799216420,0.461,3551.8,3551.2,7.17071194]
[1762799216627,0.461,3551.8,3551.2,4.3548]
[1762799217442,1.720712,3551.7,3551.1,0.012]
[1762799217639,2.47837305,3551.7,3551.1,0.012]
[1762799217840,2.47837305,3551.7,3551.1,0.1942]
[1762799218456,2.01737305,3551.7,3551.1,0.689]
[1762799218657,2.01737305,3551.7,3551.2,2.81594953]
[1762799218860,1.259712,3551.7,3551.2,2.81594953]
[1762799219047,1.259712,3551.7,3551.2,0.4948]
[1762799219442,2.01737305,3551.7,3551.2,0.4948]
[1762799220060,2.47837305,3551.7,3551.1,0.1942]
[1762799220258,2.47837305,3551.7,3551.1,3.01021426]
[1762799220835,2.47837305,3551.7,3551.1,0.689]
[1762799222857,2.47837305,3551.7,3551.1,3.50500676]
[1762799223062,2.47837305,3551.7,3551.1,0.689]
[1762799223561,2.47837305,3551.7,3551.1,3.50499757]
[1762799223767,1.21866105,3551.7,3551.1,3.50499757]
[1762799224371,0.75766105,3551.7,3551.1,0.1942]
[1762799224567,0.4606,3551.2,3551.1,0.012]
[1762799224947,0.9216,3551.2,3551.1,0.012]
[1762799225269,1.720712,3551.5,3551.1,0.4692]
[1762799225440,0.75766105,3551.6,3551.4,0.4572]
[1762799225642,0.75766105,3551.7,3551.4,0.4572]
[1762799226042,0.75866105,3551.9,3551.6,0.4572]
[1762799226242,0.75866105,3551.9,3551.8,0.4572]
[1762799226442,0.001,3551.9,3551.8,0.4572]
[1762799227638,0.001,3551.9,3551.2,6.67592824]
[1762799227842,0.001,3551.9,3551.4,0.4948]
[1762799228035,0.001,3551.9,3551.8,0.4572]
[1762799228632,0.001,3551.9,3551.8,3.27267384]
[1762799228833,0.001,3551.9,3551.8,3.76747384]
[1762799229471,0.001,3551.9,3551.8,8.00024255]
[1762799233546,0.001,3551.9,3551.8,4.38920661]
[1762799233751,0.001,3551.9,3551.8,8.00024255]
[1762799235978,0.001,3551.9,3551.8,11.86024255]
[1762799236277,0.001,3551.9,3551.8,26.76574655]
[1762799236478,0.001,3551.9,3551.8,30.37678249]
[1762799236772,0.001,3552.3,3552.2,3.2206608]
[1762799237087,0.001,3552.3,3552.2,8.56003381]
[1762799237284,0.001,3552.3,3552.2,9.05483381]
[1762799237491,0.001,3552.3,3552.2,8.64932981]
[1762799239802,0.001,3552.3,3552.2,23.14932981]
[1762799240967,0.001,3552.3,3552.2,8.64932981]
[1762799241998,0.001,3552.3,3552.2,12.50932981]
[1762799245783,0.001,3552.3,3552.2,8.89829387]
[1762799245979,0.001,3552.3,3552.2,8.40349387]
[1762799246687,0.001,3552.3,3552.2,8.87919387]
[1762799246905,0.001,3552.3,3552.2,8.40349387]
[1762799247320,0.001,3552.3,3552.2,8.87919387]
[1762799248584,0.001,3552.3,3552.2,9.28469787]
[1762799249185,0.001,3552.3,3552.2,10.54440987]
[1762799250121,0.001,3552.7,3552.6,2.81483983]
[1762799250302,0.001,3552.7,3552.6,11.74500702]
[1762799250618,0.001,3552.7,3552.6,12.22070702]
[1762799250996,0.001,3552.7,3552.6,12.12616541]
[1762799251195,0.001,3552.7,3552.6,26.62616541]
[1762799254324,0.001,3552.7,3552.6,27.88587741]
[1762799255234,0.001,3552.7,3552.6,27.48037341]
[1762799258226,0.001,3552.7,3552.6,12.98037341]
[1762799258842,0.001,3552.7,3552.6,27.48037341]
[1762799259060,0.4535,3552.7,3552.6,6.67483983]
[1762799259211,0.9314,3552.7,3552.6,2.81483983]
[1762799261638,0.4535,3552.7,3552.6,2.81483983]
[1762799261813,0.9314,3552.7,3552.6,2.81483983]
[1762799262835,0.001,3552.7,3552.6,2.81483983]
[1762799263103,0.9314,3552.7,3551.9,0.002]
[1762799263310,0.3753,3552.5,3552.4,2.81492801]
[1762799263529,0.8532,3552.5,3552.4,2.81492801]
[1762799265543,0.1076,3552.9,3552.6,2.81483983]
[1762799265544,0.0086,3552.9,3552.6,2.81483983]
[1762799265747,0.4865,3552.9,3552.8,2.81468137]
[1762799266249,0.0086,3552.9,3552.8,2.81468137]
[1762799266411,0.4611,3552.9,3552.8,2.81468137]
[1762799266744,0.939,3552.9,3552.6,2.8147665]
[1762799266935,0.3753,3552.7,3552.6,2.8147665]
[1762799267447,0.8532,3552.7,3552.6,2.8147665]
[1762799272446,0.8532,3552.7,3552.5,3.86]
[1762799272646,0.0086,3552.9,3552.5,3.86]
[1762799272647,0.9296,3552.6,3552.5,3.86]
[1762799272815,0.9296,3552.6,3552.5,6.67485559]
[1762799273244,0.9296,3552.6,3552.3,0.002]
[1762799273417,0.3761,3552.4,3552.3,0.002]
[1762799273846,0.854,3552.4,3552.3,0.002]
[1762799280364,2.8151865,3552.2,3551.9,0.002]
[1762799280562,5.22720633,3552.0,3551.9,0.002]
[1762799280964,5.71470633,3552.0,3551.9,0.002]
[1762799282751,2.198212,3552.0,3551.9,0.002]
[1762799283455,0.4875,3552.4,3551.9,0.4923]
[1762799283653,0.4875,3552.4,3552.2,2.81509556]
[1762799284143,0.4536,3552.3,3552.2,2.81509556]
[1762799284938,0.4875,3552.7,3552.4,2.81498523]
[1762799285139,0.4536,3552.5,3552.4,2.81498523]
[1762799285879,0.0096,3552.9,3552.6,2.81478239]
[1762799286087,0.001,3552.9,3552.7,2.81473839]
[1762799286677,0.4536,3552.8,3552.7,2.81473839]
[1762799286838,0.4536,3552.8,3551.5,3.99799433]
[1762799287040,0.1921,3552.6,3552.5,2.81491907]
[1762799288546,0.001,3552.9,3552.8,2.81468137]
[1762799288979,0.4546,3552.9,3552.8,2.81468137]
[1762799289286,0.4546,3552.9,3552.7,2.81472811]
[1762799289595,0.4546,3552.9,3552.8,2.81468137]
[1762799290099,0.9421,3552.9,3552.8,2.81468137]
[1762799291345,0.4546,3552.9,3552.8,2.81468137]
[1762799291646,0.9421,3552.9,3552.8,2.81468137]
[1762799291965,0.9421,3552.9,3552.7,2.8147137]
[1762799292280,0.4875,3552.8,3552.7,2.8147137]
[1762799292478,0.9411,3552.8,3552.7,2.8147137]
[1762799293047,0.9411,3552.8,3552.6,2.8148066]
[1762799293279,0.4875,3552.7,3552.6,2.8148066]
[1762799293481,0.4536,3552.7,3552.6,2.8148066]
[1762799295283,0.001,3552.9,3552.8,2.81468137]
[1762799295684,0.4546,3552.9,3552.8,2.81468137]
[1762799296475,0.9421,3552.9,3552.3,3.86]
[1762799296692,0.4885,3552.9,3552.7,2.81474593]
[1762799296892,0.4885,3552.9,3552.3,4.54584798]
[1762799296893,0.4536,3552.4,3552.3,3.86]
[1762799297075,0.4536,3552.4,3552.3,6.67507755]
[1762799297450,0.4875,3552.7,3552.6,2.81483983]
[1762799297890,0.9411,3552.7,3552.6,2.81483983]
[1762799298384,0.9411,3552.7,3552.3,3.86]
[1762799298587,0.9411,3552.7,3552.6,2.81483983]
[1762799302859,0.9411,3552.7,3552.3,2.81507653]
[1762799303064,0.1921,3552.5,3552.4,2.81499831]
[1762799304782,0.001,3552.9,3552.7,2.8147606]
[1762799305087,0.4732,3552.8,3552.2,3.86]
[1762799305287,0.4732,3552.8,3552.6,2.81476378]
[1762799305487,0.4732,3552.8,3552.2,3.86]
[1762799305794,0.4627,3552.3,3552.2,6.6751568]
[1762799306201,0.9359,3552.3,3552.2,3.86]
[1762799306387,0.9359,3552.3,3552.1,0.002]
[1762799306692,0.6704,3552.2,3552.1,0.002]
[1762799307306,0.6704,3552.2,3552.1,2.81723605]
[1762799308595,0.6704,3552.2,3552.1,0.002]
[1762799309566,0.1972,3552.2,3552.1,2.81723605]
[1762799309768,0.6704,3552.2,3552.1,0.002]
[1762799313511,0.1972,3552.2,3552.1,2.81723605]
[1762799313989,0.1972,3552.2,3552.1,0.002]
[1762799314597,0.1972,3552.2,3552.1,2.81723605]
[1762799314789,2.49057305,3552.5,3552.1,2.81723605]
[1762799315001,1.732912,3552.5,3552.1,2.81723605]
[1762799315787,0.4627,3552.2,3552.1,0.002]
[1762799316429,0.4627,3552.2,3552.1,2.81723605]
[1762799316626,0.4732,3552.4,3552.1,2.81723605]
[1762799317684,1.259712,3552.5,3552.1,0.002]
[1762799318022,0.75866105,3552.7,3552.4,3.28968149]
[1762799318237,0.001,3552.7,3552.6,3.28953983]
[1762799318386,0.4637,3552.7,3552.2,3.86]
[1762799318589,0.9369,3552.7,3552.5,2.81491595]
[1762799319133,0.1972,3552.6,3552.5,2.81491595]
[1762799319337,0.001,3552.7,3552.6,2.81483983]
[1762799319489,0.001,3552.7,3552.6,3.28953983]
[1762799319909,0.4637,3552.7,3552.6,2.81483983]
[1762799320298,0.001,3552.7,3552.6,2.81483983]
[1762799320680,0.001,3552.7,3552.6,3.28953983]
[1762799320883,0.001,3552.7,3552.6,2.81483983]
[1762799321121,0.4637,3552.7,3552.6,2.81483983]
[1762799321300,0.001,3552.7,3552.6,2.81483983]
[1762799321716,0.4637,3552.7,3552.6,2.81483983]
[1762799321895,0.4637,3552.7,3552.3,0.4623]
[1762799321896,0.9369,3552.7,3552.3,2.81505722]
[1762799322100,0.9369,3552.7,3552.6,2.81483983]
[1762799322895,0.4637,3552.7,3552.6,2.81483983]
[1762799324137,0.001,3552.7,3552.6,2.81483983]
[1762799324436,0.001,3552.7,3552.6,3.28953983]
[1762799325546,0.001,3552.7,3552.6,4.27015148]
[1762799327930,0.001,3552.7,3552.6,11.76929915]
[1762799328135,0.001,3552.7,3552.6,11.74115076]
[1762799329040,0.001,3552.7,3552.6,8.13015148]
[1762799329250,0.001,3552.7,3552.6,11.74115076]
[1762799330299,0.001,3552.7,3552.6,12.14665476]
[1762799332699,0.001,3552.7,3552.6,26.64665476]
[1762799337760,0.001,3552.7,3552.6,22.78665476]
[1762799337931,0.001,3552.9,3552.6,22.78665476]
[1762799337932,1e-08,3553.1,3552.6,24.04636676]
[1762799338139,0.01,3553.9,3553.8,2.81388935]
[1762799338334,0.01,3553.9,3553.8,3.48248935]
[1762799338651,0.01,3553.9,3553.8,3.29078935]
[1762799339756,0.7048,3553.9,3553.8,2.81388935]
[1762799339943,1.1738,3553.9,3553.8,2.81388935]
[1762799341420,0.5096,3553.9,3553.8,2.81388935]
[1762799342335,1.1319,3553.9,3552.9,0.1917]
[1762799342553,1.1319,3553.9,3553.6,2.81404772]
[1762799342554,0.1948,3553.7,3553.6,2.81404772]
[1762799342935,0.6638,3553.7,3553.6,2.81404772]
[1762799347163,0.6638,3553.7,3552.8,3.61099928]
[1762799347164,0.6638,3553.7,3552.3,0.002]
[1762799347364,1.259712,3553.4,3552.4,2.81499831]
[1762799347566,0.4966,3553.5,3553.1,2.81439728]
[1762799347746,0.469,3553.4,3553.0,2.81447352]
[1762799347946,0.4996,3553.1,3552.3,4.09199928]
[1762799348253,0.469,3553.0,3552.9,2.81460215]
[1762799348631,0.6638,3553.0,3552.3,0.002]
[1762799348850,0.3845,3552.4,3552.3,2.81707755]
[1762799349368,0.8535,3552.4,3552.3,0.002]
[1762799350258,0.8535,3552.4,3552.3,2.81707755]
[1762799351369,0.3845,3552.4,3552.3,2.81707755]
[1762799351932,0.8535,3552.4,3552.3,0.002]
[1762799352580,0.8535,3552.4,3552.3,2.81707755]
[1762799352769,0.8535,3552.4,3552.3,0.002]
[1762799354575,0.8535,3552.4,3552.3,2.81707755]
[1762799354979,0.8535,3552.4,3552.3,0.002]
[1762799358957,2.113212,3552.4,3552.3,0.002]
[1762799361829,0.3845,3552.4,3552.3,2.81707755]
[1762799363503,0.4996,3552.4,3552.3,0.002]
[1762799363702,0.9686,3552.4,3552.3,0.002]
[1762799364095,2.228312,3552.4,3552.3,0.002]
[1762799366334,5.04331031,3552.4,3552.3,0.002]
[1762799367110,2.228312,3552.4,3552.3,0.002]
[1762799367322,5.04331031,3552.4,3552.3,0.002]
[1762799368113,2.228312,3552.4,3552.3,0.002]
[1762799368311,5.04331031,3552.4,3552.3,0.002]
[1762799368697,2.228312,3552.4,3552.3,0.002]
[1762799369232,5.04331031,3552.4,3552.3,0.002]
[1762799369636,5.44881431,3552.4,3552.3,0.002]
[1762799370840,2.228312,3552.4,3552.3,0.002]
[1762799371339,5.04331031,3552.4,3552.3,0.002]
[1762799372416,2.228312,3552.4,3552.3,0.002]
[1762799373032,8.56478156,3552.4,3552.3,0.002]
[1762799373239,9.32244261,3552.4,3552.3,0.002]
[1762799374313,8.56478156,3552.4,3552.3,0.002]
[1762799374521,5.74978325,3552.4,3552.3,0.002]
[1762799374827,6.50714058,3552.4,3552.3,0.002]
[1762799375053,9.32213889,3552.4,3552.3,0.002]
[1762799375355,5.74978325,3552.4,3552.3,0.002]
[1762799375760,8.56478156,3552.4,3552.3,0.002]
[1762799377425,9.57577104,3552.4,3552.3,0.002]
[1762799377927,9.57577104,3552.4,3552.3,3.79447755]
[1762799377928,0.75864676,3552.4,3552.3,3.79447755]
[1762799378148,0.001,3553.1,3552.3,3.79447755]
[1762799378149,0.75864676,3552.8,3552.5,2.81491907]
[1762799378460,0.75864676,3552.8,3552.5,0.4891]
[1762799378649,0.75964676,3553.1,3552.8,2.81468137]
[1762799379024,0.001,3553.1,3552.8,2.81468137]